bitfinex/quotes_SOLUSD_20241107
["timestamp","ask_amount","ask_price","bid_price","bid_amount"]
[1731001252520,15.5341,194.22,194.16,10.16868028]
[1731001253426,15.5341,194.22,194.17,10.16868028]
[1731001254827,15.5341,194.22,194.18,10.16868028]
[1731001258153,15.5341,194.22,194.17,10.16868028]
[1731001259550,15.5341,194.22,194.16,10.16868028]
[1731001260341,15.5341,194.22,194.18,10.16868028]
[1731001261063,15.5341,194.22,194.2,10.16868028]
[1731001261227,15.5341,194.22,194.19,10.16868028]
[1731001261432,23.776884,194.24,194.2,10.16868028]
[1731001261639,23.776884,194.24,194.19,10.16868028]
[1731001262148,33.94556428,194.24,194.11,0.12549]
[1731001262353,33.94556428,194.24,194.17,10.16868028]
[1731001262528,23.776884,194.24,194.19,10.16868028]
[1731001267588,23.776884,194.24,194.18,10.16868028]
[1731001267748,23.776884,194.24,194.19,10.16868028]
[1731001268258,23.776884,194.24,194.2,10.16868028]
[1731001268559,23.776884,194.24,194.19,10.16868028]
[1731001268743,23.776884,194.24,194.23,10.16868028]
[1731001268946,23.902374,194.25,194.11,20.12549]
[1731001269137,23.902374,194.25,194.2,10.16868028]
[1731001270167,23.902374,194.25,194.21,10.16868028]
[1731001270459,23.902374,194.25,194.21,6.22877769]
[1731001270853,23.902374,194.25,194.2,10.16868028]
[1731001271450,23.902374,194.25,194.22,10.16868028]
[1731001271653,23.902374,194.25,194.21,10.16868028]
[1731001272065,34.07105428,194.25,194.19,10.16868028]
[1731001272234,23.902374,194.25,194.2,10.16868028]
[1731001273144,34.07105428,194.25,194.19,10.16868028]
[1731001274344,23.902374,194.25,194.2,10.16868028]
[1731001274750,23.902374,194.25,194.19,10.16868028]
[1731001276463,34.07105428,194.25,194.18,10.16868028]
[1731001278664,23.902374,194.25,194.18,10.16868028]
[1731001278861,23.902374,194.25,194.19,10.16868028]
[1731001279363,10.16868028,194.24,194.17,10.16868028]
[1731001280760,34.07105428,194.25,194.18,10.16868028]
[1731001284566,34.07105428,194.25,194.17,10.16868028]
[1731001284947,34.07105428,194.25,194.11,0.12549]
[1731001284948,10.16868028,194.22,194.11,0.12549]
[1731001285155,10.16868028,194.22,194.15,10.16868028]
[1731001285356,23.902374,194.25,194.11,0.12549]
[1731001285357,10.16868028,194.23,194.16,10.16868028]
[1731001286264,10.16868028,194.23,194.17,10.16868028]
[1731001287753,10.16868028,194.24,194.17,10.16868028]
[1731001288158,23.902374,194.25,194.19,10.16868028]
[1731001288344,34.07105428,194.25,194.19,10.16868028]
[1731001288662,10.16868028,194.24,194.18,10.16868028]
[1731001289465,10.16868028,194.24,194.11,0.12549]
[1731001289466,10.16868028,194.24,194.17,10.16868028]
[1731001290266,10.16868028,194.24,194.18,10.16868028]
[1731001291152,34.07105428,194.25,194.18,10.16868028]
[1731001291653,10.16868028,194.24,194.18,10.16868028]
[1731001295665,23.776884,194.25,194.18,10.16868028]
[1731001295872,23.776884,194.25,194.19,10.16868028]
[1731001296074,23.776884,194.25,194.2,10.16868028]
[1731001296250,23.776884,194.25,194.19,10.16868028]
[1731001296651,33.94556428,194.25,194.11,0.12549]
[1731001296865,10.16868028,194.24,194.11,20.12549]
[1731001297070,10.16868028,194.24,194.17,10.16868028]
[1731001297252,10.16868028,194.24,194.18,10.16868028]
[1731001298162,33.94556428,194.25,194.19,10.16868028]
[1731001298366,33.94556428,194.25,194.18,10.16868028]
[1731001300876,23.776884,194.25,194.2,10.16868028]
[1731001301069,33.94556428,194.25,194.19,10.16868028]
[1731001301482,33.94556428,194.25,194.18,10.16868028]
[1731001303586,10.16868028,194.24,194.17,10.16868028]
[1731001304076,33.94556428,194.25,194.18,10.16868028]
[1731001305286,10.16868028,194.24,194.17,10.16868028]
[1731001305764,10.16868028,194.22,194.09,23.776884]
[1731001305957,10.16868028,194.21,194.14,10.16868028]
[1731001306866,10.16868028,194.21,194.15,10.16868028]
[1731001307064,10.16868028,194.22,194.16,10.16868028]
[1731001307981,10.16868028,194.21,194.11,20.0]
[1731001308189,10.16868028,194.21,194.15,10.16868028]
[1731001308483,10.16868028,194.21,194.14,10.16868028]
[1731001308875,10.16868028,194.21,194.15,10.16868028]
[1731001309580,6.1417,194.23,194.16,10.16868028]
[1731001309581,10.16868028,194.22,194.16,10.16868028]
[1731001310087,10.16868028,194.21,194.15,10.16868028]
[1731001310470,10.16868028,194.22,194.16,10.16868028]
[1731001311982,10.16868028,194.21,194.1,20.12549]
[1731001312186,10.16868028,194.21,194.15,10.16868028]
[1731001312369,10.16868028,194.19,194.08,8.5998]
[1731001312568,10.16868028,194.19,194.13,10.16868028]
[1731001312787,23.902374,194.22,194.13,10.16868028]
[1731001312972,10.16868028,194.19,194.13,10.16868028]
[1731001315677,10.16868028,194.2,194.14,10.16868028]
[1731001318081,10.16868028,194.19,194.09,20.0]
[1731001318284,10.16868028,194.21,194.14,10.16868028]
[1731001318468,10.16868028,194.19,194.13,10.16868028]
[1731001318883,10.16868028,194.2,194.14,10.16868028]
[1731001320287,10.16868028,194.21,194.14,10.16868028]
[1731001320470,16.31038028,194.23,194.16,10.16868028]
[1731001320776,6.1417,194.23,194.17,10.16868028]
[1731001320970,6.1417,194.23,194.18,10.16868028]
[1731001322492,6.1417,194.23,194.19,10.16868028]
[1731001323683,6.1417,194.23,194.18,10.16868028]
[1731001324192,6.1417,194.23,194.19,10.16868028]
[1731001324774,23.902374,194.25,194.21,10.16868028]
[1731001324972,23.902374,194.25,194.22,10.16868028]
[1731001325478,6.1708,194.29,194.22,10.16868028]
[1731001325479,15.492,194.31,194.24,10.16868028]
[1731001325670,15.492,194.31,194.27,10.16868028]
[1731001326486,15.472,194.31,194.25,8.53450984]
[1731001326697,15.472,194.31,194.28,10.16868028]
[1731001327001,2.00715292,194.33,194.28,10.16868028]
[1731001327186,16.33948028,194.34,194.28,10.16868028]
[1731001327575,6.1708,194.34,194.27,10.16868028]
[1731001327790,6.1708,194.34,194.29,10.16868028]
[1731001327985,10.16868028,194.33,194.27,10.16868028]
[1731001328292,16.33948028,194.34,194.28,10.16868028]
[1731001328498,10.16868028,194.3,194.24,10.16868028]
[1731001328803,10.16868028,194.31,194.25,10.16868028]
[1731001329195,23.776884,194.31,194.26,10.16868028]
[1731001329493,8.24959929,194.34,194.27,10.16868028]
[1731001329494,23.64589929,194.34,194.27,10.16868028]
[1731001329701,33.81457957,194.34,194.28,10.16868028]
[1731001329994,23.64589929,194.34,194.28,10.16868028]
[1731001330301,33.81457957,194.34,194.27,10.16868028]
[1731001330778,33.81457957,194.34,194.28,10.16868028]
[1731001330973,10.16868028,194.33,194.27,10.16868028]
[1731001331398,10.16868028,194.33,194.26,10.16868028]
[1731001331603,15.9231,194.43,194.32,10.16868028]
[1731001331778,15.9231,194.43,194.3,40.67472112]
[1731001331779,10.16868028,194.45,194.39,10.16868028]
[1731001331981,6.6271,194.47,194.39,10.16868028]
[1731001332381,10.16868028,194.46,194.4,10.16868028]
[1731001332587,10.16868028,194.46,194.39,10.16868028]
[1731001332786,16.79578028,194.47,194.41,10.16868028]
[1731001333201,6.6271,194.47,194.41,10.16868028]
[1731001333393,10.16868028,194.46,194.4,10.16868028]
[1731001333582,16.79578028,194.47,194.4,10.16868028]
[1731001333786,6.6271,194.47,194.41,10.16868028]
[1731001334191,6.6271,194.47,194.42,10.16868028]
[1731001334381,6.6271,194.47,194.41,10.16868028]
[1731001336897,6.6271,194.47,194.34,29.952484]
[1731001336898,15.9231,194.48,194.43,10.16868028]
[1731001338411,15.2759,194.54,194.47,10.16868028]
[1731001338701,15.2759,194.54,194.4,40.67472112]
[1731001338702,15.2759,194.54,194.5,10.16868028]
[1731001338886,6.0885,194.56,194.52,10.16868028]
[1731001339089,15.2759,194.58,194.53,10.16868028]
[1731001339525,15.2759,194.58,194.54,10.16868028]
[1731001339808,15.2759,194.58,194.55,10.16868028]
[1731001340187,6.0885,194.61,194.54,10.16868028]
[1731001340392,6.0885,194.61,194.45,0.1]
[1731001340393,10.16868028,194.6,194.45,43.776884]
[1731001340600,16.25718028,194.61,194.54,10.16868028]
[1731001340989,16.25718028,194.61,194.55,10.16868028]
[1731001341212,6.0885,194.61,194.55,10.16868028]
[1731001341415,16.25718028,194.61,194.54,10.16868028]
[1731001341909,10.16868028,194.6,194.53,10.16868028]
[1731001342285,10.16868028,194.6,194.45,43.776884]
[1731001342286,10.16868028,194.6,194.54,10.16868028]
[1731001342490,10.16868028,194.58,194.45,43.776884]
[1731001342685,10.16868028,194.58,194.45,20.0]
[1731001342906,10.16868028,194.57,194.45,20.0]
[1731001343111,10.16868028,194.58,194.51,10.16868028]
[1731001343316,10.29417028,194.59,194.52,10.16868028]
[1731001343517,23.776884,194.58,194.52,10.16868028]
[1731001344010,23.776884,194.58,194.53,10.16868028]
[1731001344202,23.902374,194.6,194.54,10.16868028]
[1731001344713,34.07105428,194.6,194.54,10.16868028]
[1731001345208,33.94556428,194.6,194.54,10.16868028]
[1731001345402,23.776884,194.6,194.54,10.16868028]
[1731001345705,6.0885,194.61,194.56,10.16868028]
[1731001346213,6.0885,194.61,194.57,10.16868028]
[1731001346398,16.1150262,194.63,194.59,10.16868028]
[1731001346804,16.1150262,194.63,194.58,10.16868028]
[1731001347307,10.16868028,194.62,194.55,10.16868028]
[1731001347498,23.776884,194.61,194.47,20.0]
[1731001347686,23.776884,194.61,194.55,10.16868028]
[1731001347891,23.776884,194.61,194.45,20.0]
[1731001348090,23.776884,194.61,194.56,10.16868028]
[1731001348314,34.07105428,194.62,194.56,10.16868028]
[1731001348507,34.07105428,194.62,194.46,23.776884]
[1731001348690,23.776884,194.6,194.55,10.16868028]
[1731001349306,23.776884,194.6,194.47,20.0]
[1731001349307,33.94556428,194.6,194.54,10.16868028]
[1731001349812,23.776884,194.6,194.54,10.16868028]
[1731001350004,23.776884,194.61,194.56,10.16868028]
[1731001350713,23.902374,194.62,194.47,20.0]
[1731001351016,23.902374,194.62,194.56,10.16868028]
[1731001351218,23.902374,194.62,194.57,10.16868028]
[1731001351594,23.902374,194.62,194.56,10.16868028]
[1731001351791,34.07105428,194.62,194.56,10.16868028]
[1731001352001,23.902374,194.62,194.56,10.16868028]
[1731001352795,26.28370648,194.63,194.6,10.16868028]
[1731001352796,0.5628262,194.63,194.6,10.16868028]
[1731001353193,0.5628262,194.63,194.62,10.16868028]
[1731001354012,0.5628262,194.63,194.61,10.16868028]
[1731001356113,0.5628262,194.63,194.53,8.6198]
[1731001356308,0.5628262,194.63,194.59,10.16868028]
[1731001356533,0.5628262,194.63,194.54,20.0]
[1731001356812,0.5628262,194.63,194.46,23.876884]
[1731001356813,10.16868028,194.62,194.56,10.16868028]
[1731001357220,23.776884,194.62,194.57,10.16868028]
[1731001357598,33.94556428,194.62,194.48,8.6198]
[1731001357915,33.94556428,194.62,194.55,10.16868028]
[1731001358125,33.94556428,194.62,194.56,10.16868028]
[1731001358500,10.16868028,194.61,194.55,10.16868028]
[1731001358695,23.776884,194.62,194.55,10.16868028]
[1731001358696,33.94556428,194.62,194.55,10.16868028]
[1731001359197,22.05239,194.61,194.55,10.16868028]
[1731001359402,10.16868028,194.56,194.48,10.16868028]
[1731001359619,10.16868028,194.55,194.49,10.16868028]
[1731001360024,10.16868028,194.56,194.49,10.16868028]
[1731001362222,10.16868028,194.56,194.5,10.16868028]
[1731001363423,10.16868028,194.55,194.49,10.16868028]
[1731001365612,10.16868028,194.56,194.5,10.16868028]
[1731001366129,10.16868028,194.55,194.49,10.16868028]
[1731001367925,0.12549,194.57,194.5,10.16868028]
[1731001368129,10.16868028,194.56,194.5,10.16868028]
[1731001368508,23.776884,194.56,194.51,10.16868028]
[1731001368821,33.94556428,194.56,194.5,10.16868028]
[1731001369433,10.16868028,194.57,194.51,10.16868028]
[1731001369604,1.97409301,194.59,194.51,10.16868028]
[1731001369804,10.16868028,194.57,194.51,10.16868028]
[1731001370028,10.16868028,194.57,194.52,10.16868028]
[1731001370931,23.776884,194.58,194.53,10.16868028]
[1731001371228,23.776884,194.59,194.54,10.16868028]
[1731001371427,23.776884,194.6,194.54,10.16868028]
[1731001371608,32.09558028,194.61,194.55,10.16868028]
[1731001371814,21.9269,194.61,194.56,10.16868028]
[1731001372129,21.9269,194.61,194.57,10.16868028]
[1731001372304,0.5628262,194.63,194.58,10.16868028]
[1731001372510,0.5628262,194.63,194.59,10.16868028]
[1731001372810,0.5628262,194.63,194.5,40.67472112]
[1731001372811,0.5628262,194.63,194.6,10.16868028]
[1731001373116,0.5628262,194.63,194.59,10.16868028]
[1731001373834,0.5628262,194.63,194.6,10.16868028]
[1731001374009,0.5628262,194.63,194.49,20.0]
[1731001374216,10.73150648,194.63,194.57,10.16868028]
[1731001374415,0.5628262,194.63,194.57,10.16868028]
[1731001375177,0.5628262,194.63,194.47,6.1506]
[1731001375178,10.16868028,194.58,194.42,6.3882]
[1731001375443,10.16868028,194.58,194.41,8.6198]
[1731001375444,0.12549,194.56,194.48,10.16868028]
[1731001375612,23.776884,194.58,194.49,10.16868028]
[1731001375813,23.776884,194.55,194.49,10.16868028]
[1731001376222,33.94556428,194.55,194.49,10.16868028]
[1731001376642,23.776884,194.55,194.49,10.16868028]
[1731001376827,23.902374,194.56,194.5,10.16868028]
[1731001377031,23.902374,194.56,194.41,8.6198]
[1731001377032,34.07105428,194.56,194.49,10.16868028]
[1731001377541,39.74153317,194.56,194.49,15.83915917]
[1731001378043,15.83915917,194.57,194.5,15.83915917]
[1731001378517,15.83915917,194.57,194.51,15.83915917]
[1731001379247,15.83915917,194.57,194.5,15.83915917]
[1731001379417,15.83915917,194.58,194.51,15.83915917]
[1731001379614,15.83915917,194.57,194.51,15.83915917]
[1731001383449,15.83915917,194.56,194.5,15.83915917]
[1731001383750,15.83915917,194.56,194.49,15.83915917]
[1731001384324,37.84335917,194.59,194.52,15.83915917]
[1731001385333,15.83915917,194.58,194.52,15.83915917]
[1731001385547,37.84335917,194.59,194.52,15.83915917]
[1731001385751,37.84335917,194.59,194.53,15.83915917]
[1731001386445,37.84335917,194.59,194.52,15.83915917]
[1731001387544,37.84335917,194.59,194.43,23.876884]
[1731001387848,15.83915917,194.58,194.52,15.83915917]
[1731001388236,15.83915917,194.57,194.51,15.83915917]
[1731001388451,15.83915917,194.58,194.52,15.83915917]
[1731001388660,15.83915917,194.58,194.51,15.83915917]
[1731001389232,15.83915917,194.57,194.51,15.83915917]
[1731001389746,15.83915917,194.58,194.51,15.83915917]
[1731001390128,37.84335917,194.59,194.52,15.83915917]
[1731001390445,37.84335917,194.59,194.46,20.0]
[1731001390446,22.0042,194.59,194.53,15.83915917]
[1731001390649,0.5628262,194.63,194.56,15.83915917]
[1731001390650,32.85828537,194.63,194.56,15.83915917]
[1731001390839,17.0191262,194.63,194.57,15.83915917]
[1731001391041,17.0191262,194.63,194.58,15.83915917]
[1731001391426,17.0191262,194.63,194.6,15.83915917]
[1731001391643,17.0191262,194.63,194.59,15.83915917]
[1731001391953,0.5628262,194.63,194.59,15.83915917]
[1731001394640,0.5628262,194.63,194.58,15.83915917]
[1731001394930,0.5628262,194.63,194.59,15.83915917]
[1731001395529,0.5628262,194.63,194.6,15.83915917]
[1731001397753,0.5628262,194.63,194.59,15.83915917]
[1731001398459,0.5628262,194.63,194.6,15.83915917]
[1731001398635,0.5628262,194.63,194.5,15.93915917]
[1731001398636,0.5628262,194.63,194.62,15.83915917]
[1731001400243,0.5628262,194.63,194.56,0.1]
[1731001400244,0.5628262,194.63,194.55,23.776884]
[1731001400432,0.5628262,194.63,194.62,15.83915917]
[1731001403956,0.5628262,194.63,194.52,6.4822]
[1731001404136,0.5628262,194.63,194.58,15.83915917]
[1731001404457,0.5628262,194.63,194.59,15.83915917]
[1731001404642,0.5628262,194.63,194.61,15.83915917]
[1731001404967,0.5628262,194.63,194.6,15.83915917]
[1731001405555,0.5628262,194.63,194.59,15.83915917]
[1731001406354,0.5628262,194.63,194.52,13.31828096]
[1731001406355,0.5628262,194.63,194.61,15.83915917]
[1731001407065,0.12549,194.62,194.46,8.6198]
[1731001407244,39.61604317,194.62,194.56,15.83915917]
[1731001407435,15.83915917,194.61,194.55,15.83915917]
[1731001407843,39.61604317,194.62,194.56,15.83915917]
[1731001408562,0.12549,194.61,194.56,15.83915917]
[1731001408741,0.12549,194.61,194.55,15.83915917]
[1731001409060,15.96464917,194.61,194.55,15.83915917]
[1731001409245,23.776884,194.6,194.55,15.83915917]
[1731001409651,23.902374,194.61,194.56,15.83915917]
[1731001411660,23.776884,194.62,194.56,15.83915917]
[1731001412458,23.776884,194.62,194.57,15.83915917]
[1731001412952,23.776884,194.62,194.5,15.83915917]
[1731001412953,23.776884,194.62,194.55,15.83915917]
[1731001413156,15.83915917,194.61,194.55,15.83915917]
[1731001413362,15.83915917,194.61,194.54,15.83915917]
[1731001413550,15.83915917,194.6,194.54,15.83915917]
[1731001413856,15.83915917,194.61,194.54,15.83915917]
[1731001415265,23.776884,194.62,194.54,15.83915917]
[1731001415266,15.83915917,194.6,194.54,15.83915917]
[1731001415765,15.83915917,194.61,194.54,15.83915917]
[1731001416547,15.83915917,194.61,194.55,15.83915917]
[1731001416741,39.61604317,194.62,194.55,15.83915917]
[1731001416944,23.776884,194.62,194.56,15.83915917]
[1731001417150,0.5628262,194.63,194.6,15.83915917]
[1731001417356,0.5628262,194.63,194.61,15.83915917]
[1731001417681,0.5628262,194.63,194.52,0.1]
[1731001417682,0.5628262,194.63,194.62,15.83915917]
[1731001419974,0.5628262,194.63,194.61,15.83915917]
[1731001420263,0.5628262,194.63,194.6,15.83915917]
[1731001421177,0.5628262,194.63,194.61,15.83915917]
[1731001421746,39.74153317,194.62,194.48,8.6198]
[1731001421946,39.74153317,194.62,194.56,15.83915917]
[1731001422162,0.5628262,194.63,194.59,15.83915917]
[1731001422367,0.5628262,194.63,194.61,15.83915917]
[1731001422673,0.5628262,194.63,194.58,15.83915917]
[1731001422845,0.5628262,194.63,194.57,15.83915917]
[1731001426758,0.5628262,194.63,194.59,15.83915917]
[1731001426959,0.5628262,194.63,194.58,15.83915917]
[1731001427277,0.5628262,194.63,194.57,15.83915917]
[1731001427680,0.5628262,194.63,194.59,15.83915917]
[1731001427979,0.5628262,194.63,194.6,15.83915917]
[1731001428268,0.5628262,194.63,194.59,15.83915917]
[1731001428852,16.40198537,194.63,194.49,20.0]
[1731001429171,15.83915917,194.62,194.56,15.83915917]
[1731001429856,23.776884,194.62,194.57,15.83915917]
[1731001431273,0.5628262,194.63,194.57,15.83915917]
[1731001431565,0.5628262,194.63,194.58,15.83915917]
[1731001431759,0.5628262,194.63,194.51,6.83608096]
[1731001431760,0.5628262,194.63,194.6,15.83915917]
[1731001432873,0.5628262,194.63,194.6,15.79903957]
[1731001433063,0.5628262,194.63,194.6,15.83915917]
[1731001433650,0.5628262,194.63,194.59,15.83915917]
[1731001433851,0.5628262,194.63,194.51,0.12549]
[1731001433852,0.5628262,194.63,194.58,15.83915917]
[1731001434048,0.5628262,194.63,194.57,15.83915917]
[1731001434253,23.776884,194.62,194.56,15.83915917]
[1731001434563,23.776884,194.62,194.57,15.83915917]
[1731001435971,0.5628262,194.63,194.58,15.83915917]
[1731001436555,0.5628262,194.63,194.57,15.83915917]
[1731001438178,0.5628262,194.63,194.58,15.83915917]
[1731001439357,0.5628262,194.63,194.59,15.83915917]
[1731001439556,0.5628262,194.63,194.61,15.83915917]
[1731001440364,0.5628262,194.63,194.62,15.83915917]
[1731001440570,0.5628262,194.63,194.6,15.83915917]
[1731001440760,0.5628262,194.63,194.45,0.2]
[1731001440978,0.12549,194.62,194.56,15.83915917]
[1731001441660,0.12549,194.62,194.46,102.1027]
[1731001441867,0.12549,194.62,194.56,15.83915917]
[1731001442589,0.12549,194.62,194.5,15.83915917]
[1731001442590,0.12549,194.62,194.58,15.83915917]
[1731001443284,0.12549,194.62,194.57,15.83915917]
[1731001444487,0.5628262,194.63,194.58,15.83915917]
[1731001444694,0.5628262,194.63,194.59,15.83915917]
[1731001444990,0.5628262,194.63,194.61,15.83915917]
[1731001445493,0.5628262,194.63,194.6,15.83915917]
[1731001446074,0.5628262,194.63,194.59,15.83915917]
[1731001446477,0.5628262,194.63,194.6,15.83915917]
[1731001446678,0.5628262,194.63,194.61,15.83915917]
[1731001448678,0.5628262,194.63,194.52,6.56966827]
[1731001448679,0.5628262,194.63,194.62,15.83915917]
[1731001449088,0.5628262,194.63,194.61,15.83915917]
[1731001449692,0.5628262,194.63,194.51,23.902374]
[1731001449693,0.5628262,194.63,194.6,15.83915917]
[1731001451602,0.5628262,194.63,194.51,23.902374]
[1731001451603,0.5628262,194.63,194.61,15.83915917]
[1731001452693,0.5628262,194.63,194.62,15.83915917]
[1731001453083,0.5628262,194.63,194.6,15.83915917]
[1731001454079,0.5628262,194.63,194.61,15.83915917]
[1731001454396,0.5628262,194.63,194.62,15.83915917]
[1731001455273,0.5628262,194.63,194.62,10.12128212]
[1731001461599,0.5628262,194.63,194.61,10.12128212]
[1731001461797,0.5628262,194.63,194.62,10.12128212]
[1731001470109,0.5628262,194.63,194.54,20.1]
[1731001470312,0.5628262,194.63,194.61,10.12128212]
[1731001470515,0.5628262,194.63,194.6,10.12128212]
[1731001470808,0.5628262,194.63,194.52,20.0]
[1731001470984,0.5628262,194.63,194.6,10.12128212]
[1731001472110,0.5628262,194.63,194.51,8.6198]
[1731001472308,0.5628262,194.63,194.59,10.12128212]
[1731001472494,0.5628262,194.63,194.6,10.12128212]
[1731001472898,6.7526262,194.63,194.51,8.6198]
[1731001473097,6.7526262,194.63,194.57,10.12128212]
[1731001473312,6.7526262,194.63,194.58,10.12128212]
[1731001473498,6.7526262,194.63,194.59,10.12128212]
[1731001474019,6.7526262,194.63,194.51,8.6198]
[1731001474195,6.7526262,194.63,194.58,10.12128212]
[1731001474389,6.7526262,194.63,194.51,8.6198]
[1731001474390,6.7526262,194.63,194.59,10.12128212]
[1731001475399,6.7526262,194.63,194.51,8.6198]
[1731001475400,16.87390832,194.63,194.51,8.6198]
[1731001475608,16.87390832,194.63,194.57,10.12128212]
[1731001475800,16.87390832,194.63,194.56,10.12128212]
[1731001475986,15.3808,194.62,194.56,10.12128212]
[1731001476190,15.3808,194.62,194.58,10.12128212]
[1731001476403,15.3808,194.62,194.57,10.12128212]
[1731001476601,15.3808,194.62,194.56,10.12128212]
[1731001476800,10.12128212,194.59,194.47,7.98665536]
[1731001477008,10.12128212,194.59,194.52,10.12128212]
[1731001477211,16.4808,194.62,194.45,7.12877862]
[1731001477212,21.4002,194.57,194.45,7.12877862]
[1731001477508,21.4002,194.57,194.48,10.12128212]
[1731001477509,10.12128212,194.54,194.48,10.12128212]
[1731001477725,0.12549,194.56,194.48,10.12128212]
[1731001477907,10.07916212,194.55,194.41,8.6198]
[1731001478098,10.24677212,194.56,194.5,10.12128212]
[1731001479009,10.12128212,194.56,194.5,10.12128212]
[1731001479217,31.52148212,194.57,194.5,10.12128212]
[1731001479600,10.12128212,194.55,194.49,10.12128212]
[1731001479802,10.12128212,194.55,194.43,0.12549]
[1731001479803,10.12128212,194.56,194.5,10.12128212]
[1731001480202,31.52148212,194.57,194.51,10.12128212]
[1731001482221,10.12128212,194.56,194.5,10.12128212]
[1731001482609,1.92184045,194.62,194.55,10.12128212]
[1731001482813,23.4277262,194.63,194.6,10.12128212]
[1731001483112,23.4277262,194.63,194.61,10.12128212]
[1731001483299,23.4277262,194.63,194.52,20.0]
[1731001483499,23.4277262,194.63,194.6,10.12128212]
[1731001483719,23.4277262,194.63,194.61,10.12128212]
[1731001484020,23.4277262,194.63,194.62,10.12128212]
[1731001484212,23.4277262,194.63,194.52,20.0]
[1731001484395,23.4277262,194.63,194.61,10.12128212]
[1731001484814,23.4277262,194.63,194.5,20.0]
[1731001485121,23.4277262,194.63,194.58,10.12128212]
[1731001485619,23.4277262,194.63,194.58,15.82658973]
[1731001486204,23.4277262,194.63,194.59,15.82658973]
[1731001487097,0.12549,194.62,194.5,20.0]
[1731001487295,0.12549,194.62,194.56,15.82658973]
[1731001487825,15.95207973,194.62,194.55,15.82658973]
[1731001488007,0.12549,194.6,194.54,15.82658973]
[1731001488207,15.95207973,194.6,194.54,15.82658973]
[1731001488722,0.12549,194.6,194.54,15.82658973]
[1731001491025,15.82658973,194.59,194.53,15.82658973]
[1731001491322,0.12549,194.58,194.53,15.82658973]
[1731001492016,0.12549,194.57,194.52,15.82658973]
[1731001493820,0.12549,194.57,194.52,15.32658973]
[1731001494411,3.0826662,194.61,194.44,8.6198]
[1731001494412,31.85587973,194.55,194.44,8.6198]
[1731001494721,38.00387973,194.55,194.49,15.82658973]
[1731001495105,15.82658973,194.54,194.48,15.82658973]
[1731001495305,22.17729,194.55,194.47,15.82658973]
[1731001495306,0.12549,194.52,194.47,15.82658973]
[1731001495726,0.12549,194.47,194.32,8.6198]
[1731001495934,21.89348973,194.46,194.4,15.82658973]
[1731001496105,21.89348973,194.46,194.32,8.6198]
[1731001496106,6.0669,194.46,194.41,15.82658973]
[1731001496305,6.0669,194.46,194.42,15.82658973]
[1731001496502,6.0669,194.46,194.41,15.82658973]
[1731001497131,6.0669,194.46,194.4,15.82658973]
[1731001497624,6.0669,194.46,194.41,15.82658973]
[1731001498331,21.89348973,194.46,194.4,15.82658973]
[1731001498510,1.95212737,194.52,194.45,15.82658973]
[1731001498827,16.3107,194.54,194.45,8.25454777]
[1731001499038,6.0669,194.56,194.53,15.82658973]
[1731001499207,15.0929,194.58,194.55,15.82658973]
[1731001499408,6.3507,194.61,194.57,15.82658973]
[1731001499738,0.5628262,194.63,194.6,15.82658973]
[1731001499906,0.5628262,194.63,194.61,15.82658973]
[1731001500313,0.5628262,194.63,194.6,15.82658973]
[1731001500516,0.5628262,194.63,194.57,15.82658973]
[1731001500742,0.5628262,194.63,194.5,15.82658973]
[1731001500743,16.38941593,194.63,194.56,15.82658973]
[1731001500923,0.12549,194.62,194.56,15.82658973]
[1731001502628,0.12549,194.62,194.58,15.32658973]
[1731001502823,0.12549,194.62,194.57,15.82658973]
[1731001503031,15.95207973,194.62,194.56,15.82658973]
[1731001503433,0.12549,194.62,194.57,15.82658973]
[1731001503624,0.12549,194.62,194.58,15.82658973]
[1731001503809,0.5628262,194.63,194.58,15.82658973]
[1731001504013,0.5628262,194.63,194.61,15.82658973]
[1731001504214,0.5628262,194.63,194.6,15.82658973]
[1731001504629,0.5628262,194.63,194.57,15.82658973]
[1731001505019,0.12549,194.62,194.57,15.82658973]
[1731001505214,0.12549,194.62,194.58,15.82658973]
[1731001506031,0.12549,194.62,194.48,20.0]
[1731001506239,0.12549,194.62,194.58,15.82658973]
[1731001506433,0.12549,194.62,194.59,15.82658973]
[1731001506833,0.12549,194.62,194.58,15.82658973]
[1731001508337,0.12549,194.62,194.48,20.0]
[1731001508511,0.12549,194.62,194.58,15.82658973]
[1731001508916,0.5628262,194.63,194.49,23.776884]
[1731001509134,0.5628262,194.63,194.61,15.82658973]
[1731001509332,0.5628262,194.63,194.62,15.82658973]
[1731001509527,0.5628262,194.63,194.61,15.82658973]
[1731001509734,0.5628262,194.63,194.6,15.82658973]
[1731001510251,0.5628262,194.63,194.52,20.0]
[1731001510431,0.5628262,194.63,194.61,15.82658973]
[1731001510625,0.5628262,194.63,194.52,20.0]
[1731001510929,0.5628262,194.63,194.6,15.82658973]